bitfinex-derivatives/quotes_SOLF0:USTF0_20250716
["timestamp","ask_amount","ask_price","bid_price","bid_amount"]
[1752676612992,8.65264341,167.25,167.2,10.99573623]
[1752676613190,5.9782,167.24,167.21,5.01673623]
[1752676613404,5.9782,167.24,167.2,5.979]
[1752676613690,129.84530199,167.33,167.18,515.86]
[1752676613691,8.65264341,167.28,167.21,5.01192328]
[1752676613894,0.04072625,167.24,167.18,515.86]
[1752676614095,0.04072625,167.24,167.19,5.01253033]
[1752676614293,0.04072625,167.24,167.2,5.01253033]
[1752676614492,0.04072625,167.24,167.21,5.01253033]
[1752676614691,0.04072625,167.24,167.23,5.9783]
[1752676615394,2.625e-05,167.24,167.23,19.63992383]
[1752676615994,129.84530199,167.33,167.29,5.9761]
[1752676616597,129.84530199,167.33,167.3,5.9757]
[1752676616794,129.84530199,167.33,167.27,5.00651934]
[1752676617099,129.84530199,167.33,167.26,8.65264341]
[1752676617303,129.84530199,167.33,167.29,5.9759]
[1752676617495,129.84530199,167.33,167.28,0.04030418]
[1752676617696,353.21997012,167.44,167.3,5.9755]
[1752676617889,353.21997012,167.44,167.28,0.04030418]
[1752676617890,5.9743,167.35,167.28,8.69294759]
[1752676618098,8.65264341,167.38,167.28,8.65264341]
[1752676618495,5.9737,167.36,167.3,0.03929839]
[1752676618800,8.65264341,167.36,167.3,0.03929839]
[1752676619395,8.65264341,167.38,167.3,0.03929839]
[1752676619900,8.65264341,167.38,167.28,5.00301993]
[1752676620100,8.65264341,167.38,167.32,0.04289233]
[1752676620993,8.65264341,167.34,167.32,0.04289233]
[1752676621410,5.9747,167.33,167.32,0.04289233]
[1752676621698,8.65264341,167.34,167.22,5.00434959]
[1752676621900,0.04577009,167.34,167.24,5.9776]
[1752676622205,8.65264341,167.3,167.21,5.00552614]
[1752676622397,8.65264341,167.3,167.21,8.65264341]
[1752676622601,13.37225448,167.39,167.26,5.9772]
[1752676622801,8.65264341,167.31,167.22,5.00552614]
[1752676623005,8.69385146,167.27,167.2,5.00552614]
[1752676623199,8.69385146,167.27,167.19,5.00552614]
[1752676623401,25.31885448,167.37,167.2,13.65816955]
[1752676623602,8.65264341,167.31,167.21,13.65484353]
[1752676623803,5.9762,167.29,167.26,5.9771]
[1752676624003,8.65264341,167.33,167.23,13.65484353]
[1752676624309,0.0421052,167.28,167.27,5.9768]
[1752676624504,8.65264341,167.34,167.27,8.79240802]
[1752676624709,8.65264341,167.36,167.28,8.79240802]
[1752676624910,358.0,167.38,167.29,8.79240802]
[1752676625109,366.65264341,167.38,167.3,8.79240802]
[1752676625409,5.9736,167.37,167.33,5.9745]
[1752676625611,5.9736,167.37,167.29,8.65264341]
[1752676625806,8.65264341,167.38,167.32,0.04557766]
[1752676626004,8.65264341,167.38,167.33,6.22209471]
[1752676626309,8.65264341,167.38,167.32,6.02057766]
[1752676626502,19.94010642,167.41,167.33,6.22122026]
[1752676626699,14.62574341,167.38,167.33,5.9746]
[1752676626909,14.62574341,167.38,167.32,0.04557766]
[1752676627211,25.91210642,167.41,167.36,5.9733]
[1752676627405,25.91210642,167.41,167.37,8.78340948]
[1752676627406,19.94010642,167.41,167.37,8.78340948]
[1752676627607,19.94010642,167.41,167.33,8.65264341]
[1752676627808,130.57493518,167.43,167.35,8.65264341]
[1752676628008,130.57493518,167.43,167.37,0.0389371]
[1752676628207,130.57493518,167.43,167.38,8.77338179]
[1752676628408,130.57493518,167.43,167.39,8.77338179]
[1752676628612,130.57493518,167.43,167.37,0.0389371]
[1752676628807,130.57493518,167.43,167.4,5.9721]
[1752676629107,132.65264341,167.47,167.38,8.65264341]
[1752676629312,5.9703,167.46,167.41,5.9717]
[1752676629513,132.65264341,167.47,167.38,8.65264341]
[1752676629713,132.65264341,167.47,167.39,8.7505881]
[1752676629914,132.65264341,167.47,167.4,8.7505881]
[1752676630111,516.28,167.48,167.41,0.04268885]
[1752676630313,8.65264341,167.48,167.41,0.04268885]
[1752676630512,8.65264341,167.48,167.38,8.65264341]
[1752676630713,352.06,167.49,167.42,5.9715]
[1752676630910,8.65264341,167.48,167.43,0.04574585]
[1752676631108,352.06,167.49,167.31,8.74233721]
[1752676631109,8.65264341,167.44,167.31,8.74233721]
[1752676631314,352.06,167.49,167.33,8.65264341]
[1752676631315,0.0414232,167.47,167.33,8.65264341]
[1752676631507,352.06,167.49,167.33,8.65264341]
[1752676631715,8.65264341,167.45,167.35,8.65264341]
[1752676631911,8.65264341,167.45,167.36,8.73697026]
[1752676632113,5.9718,167.42,167.37,8.73697026]
[1752676632308,8.65264341,167.44,167.38,6.18756476]
[1752676632612,6.01261755,167.42,167.37,5.9732]
[1752676632814,8.69366096,167.42,167.34,8.65264341]
[1752676633013,8.69366096,167.42,167.35,8.73332402]
[1752676633215,8.69366096,167.42,167.36,8.73332402]
[1752676633413,8.65264341,167.4,167.31,8.65264341]
[1752676633609,8.65264341,167.4,167.32,8.7314042]
[1752676633805,0.04135598,167.41,167.33,8.7314042]
[1752676634010,0.04135598,167.41,167.38,8.65264341]
[1752676634305,5.9708,167.45,167.28,744.2]
[1752676634513,5.9708,167.45,167.37,8.65264341]
[1752676634705,0.03897755,167.41,167.37,8.65264341]
[1752676635214,352.06,167.49,167.41,5.9718]
[1752676635215,5.9705,167.45,167.41,5.9718]
[1752676635417,8.65264341,167.48,167.39,8.65264341]
[1752676635614,0.04532,167.41,167.39,8.65264341]
[1752676635814,0.04532,167.41,167.4,5.9722]
[1752676636015,0.04532,167.41,167.39,8.65264341]
[1752676636016,8.65264341,167.48,167.39,8.65264341]
[1752676636217,124.0,167.49,167.39,8.65264341]
[1752676636413,0.04351909,167.42,167.39,8.65264341]
[1752676636717,132.65264341,167.49,167.31,4.97931106]
[1752676636913,0.0393156,167.42,167.39,8.65264341]
[1752676637113,4.23836732,167.41,167.39,8.65264341]
[1752676637318,4.23836732,167.4,167.39,8.65264341]
[1752676637613,0.03857161,167.42,167.39,14.62524341]
[1752676637918,8.65264341,167.5,167.41,8.65264341]
[1752676638424,124.0,167.5,167.43,8.65264341]
[1752676638620,8.65264341,167.52,167.43,8.65264341]
[1752676639009,132.65264341,167.52,167.43,8.65264341]
[1752676639219,132.65264341,167.52,167.46,0.04183068]
[1752676639416,137.89481275,167.55,167.46,0.00240919]
[1752676639716,0.04363174,167.49,167.46,0.00240919]
[1752676639918,0.04363174,167.49,167.47,5.9697]
[1752676640118,0.04363174,167.49,167.46,0.00240919]
[1752676640918,0.04363174,167.49,167.48,5.9693]
[1752676642031,0.04363174,167.49,167.47,5.9696]
[1752676642322,0.04363174,167.49,167.46,0.00240919]
[1752676643415,0.04363174,167.49,167.48,5.9693]
[1752676645218,8.65264341,167.59,167.48,8.65264341]
[1752676645716,124.0,167.58,167.48,8.65264341]
[1752676646325,8.65264341,167.57,167.51,0.03907439]
[1752676646521,8.65264341,167.55,167.51,0.03907439]
[1752676646915,5.9674,167.54,167.51,0.03907439]
[1752676647119,8.65264341,167.55,167.51,0.03907439]
[1752676647317,5.9673,167.54,167.51,0.03907439]
[1752676647516,8.65264341,167.55,167.51,0.03907439]
[1752676647825,5.9657,167.59,167.54,5.9669]
[1752676648025,8.65264341,167.6,167.51,0.03907439]
[1752676648224,8.65264341,167.6,167.5,8.65264341]
[1752676648721,8.65264341,167.6,167.54,6.00495156]
[1752676649325,5.9659,167.58,167.54,6.00495156]
[1752676649528,8.65264341,167.6,167.55,5.9669]
[1752676649730,8.65264341,167.6,167.54,0.03775156]
[1752676650028,4.03898766,167.59,167.54,0.03775156]
[1752676650229,10.00498766,167.58,167.54,6.00475156]
[1752676650531,4.03898766,167.57,167.54,0.03775156]
[1752676650830,4.03898766,167.56,167.55,5.9665]
[1752676651329,4.03898766,167.56,167.54,6.00485156]
[1752676651529,4.03898766,167.55,167.54,6.00485156]
[1752676651729,4.03898766,167.55,167.54,0.03775156]
[1752676651929,4.03898766,167.55,167.54,6.00495156]
[1752676652823,5.9653,167.6,167.55,5.9665]
[1752676653031,4.03235293,167.59,167.54,0.03775156]
[1752676653329,4.03235293,167.58,167.54,0.03775156]
[1752676653524,4.03235293,167.57,167.54,0.03775156]
[1752676653731,4.03235293,167.56,167.54,0.03775156]
[1752676653932,4.03235293,167.55,167.54,0.03775156]
[1752676654327,4.03235293,167.55,167.54,6.00495156]
[1752676654936,4.03235293,167.55,167.54,0.03775156]
[1752676655427,12.68499634,167.55,167.54,0.03775156]
[1752676656231,18.65189634,167.55,167.54,0.03775156]
[1752676656526,12.68499634,167.55,167.54,0.03775156]
[1752676657029,12.68499634,167.55,167.41,235.95264341]
[1752676657233,8.65264341,167.51,167.42,13.69049799]
[1752676657534,4.03235293,167.5,167.43,8.72478937]
[1752676657725,4.03235293,167.5,167.42,4.96570862]
[1752676657726,4.03235293,167.49,167.48,5.9694]
[1752676657933,8.65264341,167.6,167.43,8.65264341]
[1752676658129,8.65264341,167.6,167.44,8.72850174]
[1752676658130,8.65264341,167.53,167.44,8.72850174]
[1752676658329,4.02852828,167.52,167.5,5.9686]
[1752676658629,4.02852828,167.51,167.5,5.9686]
[1752676658933,4.02852828,167.51,167.49,5.9689]
[1752676659235,4.02852828,167.5,167.49,5.9689]
[1752676660037,352.31874396,167.63,167.48,8.65264341]
[1752676660038,8.65264341,167.56,167.48,8.65264341]
[1752676660231,8.65264341,167.56,167.42,16.87638891]
[1752676660232,8.65264341,167.54,167.46,4.9726406]
[1752676660430,125.03872845,167.63,167.47,6.13390857]
[1752676660730,8.65264341,167.53,167.44,235.87264341]
[1752676660929,8.65264341,167.53,167.45,11.11277212]
[1752676661131,14.62024341,167.53,167.46,6.13667879]
[1752676661430,8.65264341,167.51,167.47,6.13667879]
[1752676661631,5.968,167.52,167.48,6.13863129]
[1752676661837,8.65264341,167.51,167.49,6.13863129]
[1752676662032,8.65264341,167.51,167.43,4.97917761]
[1752676662234,8.65264341,167.49,167.44,13.72175474]
[1752676662431,8.65264341,167.6,167.45,6.1391322]
[1752676662637,8.65264341,167.6,167.46,12.1089322]
[1752676662836,8.65264341,167.48,167.47,6.1391322]
[1752676663037,8.65264341,167.48,167.4,4.98378986]
[1752676663336,8.65264341,167.48,167.46,5.9698]
[1752676663732,8.65264341,167.48,167.4,4.98719533]
[1752676663933,8.65264341,167.48,167.41,13.74158526]
[1752676664228,8.65264341,167.47,167.42,8.75438993]
[1752676664431,8.65264341,167.47,167.43,6.1473884]
[1752676664630,8.65264341,167.47,167.44,12.1178884]
[1752676664835,8.65264341,167.47,167.44,5.9705]
[1752676665030,5.9697,167.47,167.44,5.9705]
[1752676665232,8.65264341,167.47,167.44,5.9705]
[1752676665639,14.62264341,167.47,167.39,4.99152783]
[1752676665837,8.65264341,167.45,167.4,13.75499807]
[1752676666039,8.65264341,167.45,167.41,8.76347024]
[1752676666230,8.65264341,167.45,167.42,8.76388434]
[1752676666432,8.65264341,167.43,167.39,4.99133581]
[1752676666736,8.65264341,167.43,167.4,6.15984702]
[1752676666930,8.65264341,167.43,167.41,6.15985463]
[1752676667129,2.37005048,167.5,167.42,15.84871516]
[1752676667437,2.37005048,167.5,167.4,4.9973242]
[1752676667438,8.65264341,167.43,167.37,515.6]
[1752676667632,8.65264341,167.41,167.38,5.00411577]
[1752676667836,5.9722,167.4,167.39,0.92723193]
[1752676668032,8.65264341,167.39,167.29,4.93388891]
[1752676668229,11.938,167.49,167.28,4.93388891]
[1752676668430,8.65264341,167.4,167.3,8.65264341]
[1752676668635,11.938,167.49,167.3,13.58653232]
[1752676668929,8.65264341,167.4,167.3,13.58653232]
[1752676669133,8.65264341,167.44,167.34,8.65264341]
[1752676669438,8.65264341,167.44,167.4,5.9721]
[1752676669634,8.65264341,167.44,167.34,8.65264341]
[1752676670130,5.9712,167.43,167.34,8.65264341]
[1752676670330,8.65264341,167.44,167.31,4.93388891]
[1752676670535,8.65264341,167.44,167.33,8.65264341]
[1752676670744,8.65264341,167.4,167.32,227.1]
[1752676671038,5.973,167.38,167.29,13.58653232]
[1752676671238,8.65264341,167.37,167.29,4.93388891]
[1752676671440,8.65264341,167.37,167.27,13.58653232]
[1752676671737,5.9739,167.36,167.26,232.01388891]
[1752676671938,8.65264341,167.37,167.27,8.65264341]
[1752676672138,8.65264341,167.37,167.26,235.73264341]
[1752676672437,8.65264341,167.37,167.26,227.08]
[1752676672628,5.9746,167.34,167.26,235.73264341]
[1752676672832,8.65264341,167.36,167.26,235.73264341]
[1752676673030,8.65264341,167.36,167.28,8.65264341]
[1752676673230,8.65264341,167.36,167.33,5.9747]
[1752676673436,2.67549991,167.36,167.33,5.9747]
[1752676673632,8.65264341,167.37,167.33,5.9747]
[1752676673836,8.65264341,167.37,167.32,5.9749]
[1752676674034,8.65264341,167.37,167.28,8.65264341]
[1752676674233,8.65264341,167.37,167.26,235.71264341]
[1752676674437,5.9738,167.36,167.32,5.975]
[1752676674835,8.65264341,167.37,167.26,235.71264341]
[1752676675238,5.9744,167.34,167.26,235.71264341]
[1752676675438,5.9744,167.34,167.26,235.67264341]
[1752676675840,5.9744,167.34,167.29,5.9758]
[1752676676044,5.9748,167.33,167.29,5.9758]
[1752676676238,8.65264341,167.35,167.26,227.02]
[1752676676436,5.9747,167.33,167.26,227.02]
[1752676676635,8.65264341,167.33,167.26,227.02]
[1752676677040,14.62844341,167.31,167.26,232.9969]
[1752676677245,8.65264341,167.31,167.26,227.02]
[1752676677545,8.65264341,167.33,167.27,5.9768]
[1752676677844,8.65264341,167.33,167.26,227.02]
[1752676678045,8.65264341,167.33,167.27,5.9767]
[1752676678443,4.16878079,167.33,167.27,5.9767]
[1752676678746,124.0,167.39,167.26,227.02]
[1752676678747,8.65264341,167.34,167.28,5.9765]
[1752676678944,5.9748,167.33,167.28,5.9765]
[1752676679145,8.65264341,167.34,167.29,5.9759]
[1752676679339,8.65264341,167.34,167.3,6.09973331]
[1752676679541,8.65264341,167.36,167.31,6.38001197]
[1752676679746,8.65264341,167.36,167.32,6.38001197]
[1752676679947,8.65264341,167.36,167.33,6.38001197]
[1752676680142,8.65264341,167.36,167.34,6.38001197]
[1752676680349,14.62624341,167.36,167.35,6.38001197]
[1752676681252,124.0,167.39,167.35,6.38001197]
[1752676681553,8.65264341,167.41,167.36,6.38001197]
[1752676681753,742.98,167.49,167.37,6.38001197]
[1752676681945,8.65264341,167.44,167.32,226.92]
[1752676682256,5.9723,167.4,167.33,18.88361542]
[1752676682450,8.65264341,167.42,167.35,5.9737]
[1752676682648,8.65264341,167.42,167.36,1.49399511]
[1752676682953,124.0,167.48,167.37,1.49399511]
[1752676683149,8.65264341,167.42,167.37,1.49399511]
[1752676683449,8.65264341,167.41,167.38,1.49406808]
[1752676683654,8.65264341,167.41,167.39,1.49406808]
[1752676683858,14.62444341,167.41,167.4,1.49406808]
[1752676684245,14.62444341,167.41,167.4,6.808e-05]
[1752676686548,14.62444341,167.41,167.32,8.73559326]
[1752676686549,14.63264341,167.41,167.32,8.73559326]
[1752676686753,8.65264341,167.36,167.26,8.65264341]
[1752676686949,8.65264341,167.36,167.27,8.73932343]
[1752676687151,5.9744,167.34,167.29,5.9759]
[1752676687549,5.9741,167.35,167.3,5.9758]
[1752676687853,0.03883865,167.33,167.26,8.65264341]
[1752676688051,0.03883865,167.33,167.27,8.73515143]
[1752676688255,0.03883865,167.33,167.28,17.38779484]
[1752676688454,8.65264341,167.39,167.29,8.73203251]
[1752676688648,8.65264341,167.39,167.28,8.65264341]
[1752676688847,8.65264341,167.37,167.29,6.08802244]
[1752676689050,8.65264341,167.35,167.26,8.65264341]
[1752676689360,8.65264341,167.4,167.28,5.9761]
[1752676689559,8.65264341,167.35,167.28,5.9761]
[1752676689962,5.975,167.33,167.28,5.9761]
[1752676690159,8.65264341,167.35,167.27,5.9768]
[1752676690354,8.65264341,167.35,167.28,6.0877584]
[1752676690561,8.65264341,167.35,167.25,524.31264341]
[1752676690758,8.65264341,167.31,167.26,8.7291758]
[1752676690958,8.65264341,167.31,167.24,226.72]
[1752676691153,5.9761,167.29,167.25,12.06593832]
[1752676691354,8.65264341,167.31,167.21,8.65264341]
[1752676691963,8.65264341,167.31,167.22,8.72672029]
[1752676692158,8.65264341,167.29,167.19,226.64]
[1752676692357,8.65264341,167.29,167.2,17.38550387]
[1752676692559,8.65264341,167.29,167.21,6.08972277]
[1752676692755,8.65264341,167.31,167.22,8.65264341]
[1752676693061,8.65264341,167.33,167.24,8.65264341]
[1752676693362,5.9749,167.33,167.29,5.9761]
[1752676693561,8.65264341,167.35,167.24,8.65264341]
[1752676693758,5.9753,167.32,167.27,5.9766]
[1752676694265,8.65264341,167.33,167.23,8.65264341]
[1752676694463,8.65264341,167.33,167.24,6.08507286]
[1752676694665,874.12,167.39,167.23,8.65264341]
[1752676694960,5.9756,167.31,167.28,5.9764]
[1752676695155,8.65264341,167.34,167.25,8.65264341]
[1752676695754,5.9757,167.31,167.22,4.97660822]
[1752676695958,8.65264341,167.32,167.23,8.72542041]
[1752676696265,8.65264341,167.32,167.24,8.72542041]
[1752676696564,7.15532918,167.32,167.25,5.9773]
[1752676696864,7.15532918,167.32,167.24,8.65264341]
[1752676697064,5.976,167.3,167.26,5.9771]
[1752676697365,5.66311258,167.34,167.24,8.65264341]
[1752676697559,5.66311258,167.34,167.28,5.9762]
[1752676697765,5.9749,167.33,167.25,8.65264341]
[1752676697957,8.65264341,167.35,167.25,8.65264341]
[1752676698161,8.65264341,167.35,167.26,6.08922639]
[1752676698364,5.975,167.33,167.25,8.65264341]
[1752676698663,8.65264341,167.36,167.26,7.58305336]
[1752676698856,8.65264341,167.34,167.28,5.9764]
[1752676699056,5.9753,167.32,167.29,1.49461976]
[1752676699257,5.9753,167.32,167.3,1.49461976]
[1752676699464,8.65264341,167.34,167.31,1.49461976]
[1752676699659,8.65264341,167.34,167.32,1.49455276]
[1752676699962,8.65264341,167.34,167.33,1.49455276]
[1752676700363,5.9752,167.32,167.28,5.9762]
[1752676700560,5.9752,167.32,167.29,1.49457519]
[1752676700765,8.64945292,167.34,167.3,1.49457519]
[1752676700965,8.64945292,167.34,167.31,1.49457519]
[1752676701169,8.64945292,167.34,167.32,1.49457519]
[1752676701361,14.62375292,167.34,167.33,1.49457519]
[1752676702865,358.0,167.38,167.33,1.49457519]
[1752676703068,357.67666225,167.38,167.34,1.49457519]
[1752676703263,8.65264341,167.35,167.28,5.9764]
[1752676703458,8.65264341,167.35,167.29,1.49465362]
[1752676703663,8.65264341,167.35,167.3,1.49465362]
[1752676703866,8.65264341,167.35,167.31,1.49465362]
[1752676704070,8.65264341,167.35,167.32,1.49465362]
[1752676704269,8.65264341,167.35,167.33,1.49465362]
[1752676704469,14.62664341,167.35,167.34,1.49465362]
[1752676704667,8.65264341,167.35,167.23,8.65264341]
[1752676704864,8.65264341,167.32,167.24,13.48967597]
[1752676705066,8.65264341,167.31,167.25,13.48967597]
[1752676705266,8.65264341,167.31,167.26,8.48352725]
[1752676705467,5.9765,167.29,167.21,8.65264341]
[1752676705766,5.9765,167.29,167.22,13.50228656]
[1752676706067,5.9765,167.29,167.23,13.50228656]
[1752676706266,5.9765,167.29,167.24,13.50838517]
[1752676706462,5.9765,167.29,167.21,8.65264341]
[1752676706463,7.15498397,167.31,167.26,5.977]
[1752676706768,1.17565642,167.31,167.27,8.49738983]
[1752676706968,5.9761,167.3,167.21,8.65264341]
[1752676707174,5.9761,167.3,167.22,13.51707484]
[1752676707368,5.9761,167.3,167.23,13.51707484]
[1752676707666,5.9761,167.3,167.24,13.51707484]
[1752676707871,5.9761,167.3,167.25,13.51707484]
[1752676708077,5.9761,167.3,167.26,13.51707484]
[1752676708267,5.9761,167.3,167.27,8.49768798]
[1752676708469,1.17565642,167.31,167.26,5.9769]
[1752676708672,1.17565642,167.31,167.27,5.91496461]
[1752676709069,8.65264341,167.3,167.28,2.60425345]
[1752676709272,8.65264341,167.3,167.26,5.9769]
[1752676709471,8.65264341,167.3,167.27,11.8967473]
[1752676709775,8.65264341,167.3,167.28,2.60663561]
[1752676709966,5.9761,167.29,167.26,5.9772]
[1752676710169,8.65264341,167.3,167.27,8.53050953]
[1752676710370,8.65264341,167.28,167.18,5.02612349]
[1752676710570,8.65264341,167.22,167.19,13.56511147]
[1752676710773,750.83264341,167.3,167.2,13.56511147]
[1752676710971,10.42422876,167.21,167.09,522.87851985]
[1752676711169,5.21211438,167.21,167.09,516.26]
[1752676711371,5.21211438,167.15,167.09,516.26]
[1752676711678,5.21211438,167.15,167.12,5.982]
[1752676712075,5.21211438,167.15,167.11,5.9825]
[1752676712376,2.22035771,167.15,167.09,516.26]
[1752676712571,5.21211438,167.21,167.09,516.26]
[1752676712776,5.21211438,167.15,167.13,5.9818]
[1752676713076,8.68773652,167.16,167.13,5.9818]
[1752676713273,8.68773652,167.16,167.13,5.9815]
[1752676713578,8.68773652,167.23,167.14,8.68773652]
[1752676713774,8.68773652,167.23,167.17,5.9802]
[1752676713972,524.94773652,167.3,167.17,5.9802]
[1752676713973,8.68773652,167.21,167.17,5.9802]
[1752676714280,524.94773652,167.3,167.16,5.9805]
[1752676714281,8.68773652,167.19,167.16,5.9805]
[1752676714478,8.68773652,167.19,167.1,8.68773652]
[1752676714873,14.66763652,167.19,167.1,8.68773652]
[1752676715076,8.68773652,167.2,167.1,8.68773652]
[1752676715272,8.68773652,167.16,167.13,5.9818]
[1752676715479,8.68773652,167.16,167.06,8.68773652]
[1752676715781,8.68773652,167.16,167.04,4.93388891]
[1752676716077,8.68773652,167.17,167.08,8.68773652]
[1752676716280,8.68773652,167.17,167.06,8.68773652]
[1752676716484,125.20701569,167.17,167.12,5.9819]
[1752676716780,125.20701569,167.17,167.06,8.68773652]
[1752676717277,8.68773652,167.18,167.08,8.68773652]
[1752676717481,8.68773652,167.18,167.03,225.76]
[1752676717482,8.68773652,167.24,167.14,8.68773652]
[1752676718372,5.9783,167.23,167.14,8.68773652]
[1752676718575,8.68773652,167.24,167.14,8.68773652]
[1752676718777,124.0,167.26,167.14,8.68773652]
[1752676718778,8.68773652,167.23,167.17,5.9802]
[1752676719178,8.68773652,167.23,167.08,4.93388891]
[1752676719375,8.68773652,167.2,167.11,8.68773652]
[1752676719783,14.66713652,167.2,167.11,8.68773652]
[1752676720380,124.0,167.26,167.07,237.5877]
[1752676720684,8.68773652,167.23,167.13,8.68773652]
[1752676720886,5.9783,167.24,167.19,5.9797]
[1752676721088,8.68773652,167.25,167.19,5.9797]
[1752676721383,8.68773652,167.25,167.15,8.68773652]
[1752676721886,8.68773652,167.25,167.16,8.68773652]
[1752676722084,5.9781,167.24,167.16,8.68773652]
[1752676722385,8.68773652,167.25,167.16,8.68773652]
[1752676722582,14.66543652,167.25,167.16,8.68773652]
[1752676722778,467.35118,167.27,167.18,8.68773652]
[1752676722981,343.35118,167.27,167.18,8.68773652]
[1752676723788,349.32828,167.27,167.22,5.9784]
[1752676724087,8.68773652,167.28,167.22,5.9784]
[1752676724288,5.977,167.27,167.22,5.9784]
[1752676724583,5.977,167.27,167.23,5.9782]
[1752676724786,8.683253,167.28,167.23,5.9782]
[1752676725187,5.9771,167.27,167.22,5.9785]
[1752676725589,8.683253,167.28,167.22,5.9785]
[1752676725784,5.9769,167.27,167.22,5.9785]
[1752676725990,8.683253,167.28,167.22,5.9785]
[1752676726191,8.68773652,167.27,167.21,5.9789]
[1752676726390,8.68773652,167.28,167.19,8.68773652]
[1752676726588,1.21177519,167.28,167.23,5.9781]
[1752676726988,8.68773652,167.28,167.23,5.9781]
[1752676727388,5.69744231,167.28,167.22,5.9785]
[1752676727892,8.68773652,167.26,167.22,5.9785]
[1752676728495,4.20142353,167.3,167.22,5.9785]
[1752676728695,8.68773652,167.26,167.22,5.9785]
[1752676728892,341.45680414,167.32,167.23,5.9782]
[1752676729093,14.66463652,167.27,167.23,5.9782]
[1752676729292,8.68773652,167.28,167.17,8.68773652]
[1752676729493,8.68773652,167.28,167.19,8.68773652]
[1752676729692,8.68773652,167.28,167.2,5.93107194]
[1752676729993,14.66443652,167.28,167.23,5.978]
[1752676730796,8.68300374,167.28,167.23,5.978]
[1752676730996,5.977,167.27,167.23,5.978]
[1752676731192,5.977,167.27,167.22,5.9785]
[1752676731392,2.70630374,167.28,167.17,8.68773652]
[1752676731597,8.68773652,167.29,167.19,8.68773652]
[1752676731791,339.67703039,167.32,167.24,5.9778]
[1752676731994,8.68773652,167.29,167.24,5.9778]
[1752676732195,339.67703039,167.32,167.19,8.68773652]
[1752676732397,8.68773652,167.3,167.2,5.85363692]
[1752676732596,8.68773652,167.28,167.21,5.85363692]
[1752676732798,8.68773652,167.28,167.22,5.85363692]
[1752676732993,8.68773652,167.28,167.19,8.68773652]
[1752676733187,5.9759,167.3,167.2,5.85409213]
[1752676733392,8.68773652,167.29,167.21,5.85409213]
[1752676733590,8.68773652,167.29,167.26,5.9769]
[1752676733897,333.41275069,167.32,167.21,8.68773652]
[1752676733898,8.68773652,167.3,167.21,8.68773652]
[1752676734096,8.68773652,167.3,167.22,5.85605988]
[1752676734296,8.68773652,167.3,167.23,5.85605988]
[1752676734591,8.68773652,167.3,167.24,5.85605988]
[1752676734796,8.68773652,167.3,167.21,8.68773652]
[1752676734997,342.10048721,167.32,167.22,6.1408582]
[1752676735193,108.19275069,167.32,167.23,14.82859472]
[1752676735497,576.83891652,167.34,167.24,6.1408582]
[1752676735696,576.83891652,167.34,167.25,6.1408582]
[1752676735897,8.68773652,167.32,167.26,6.1408582]
[1752676736097,8.68773652,167.32,167.27,6.1408582]
[1752676736296,124.0,167.33,167.28,6.1408582]
[1752676736501,125.21385736,167.33,167.23,8.68773652]
[1752676736690,119.23475403,167.33,167.24,6.13583598]
[1752676736890,568.15118,167.34,167.33,5.9747]
[1752676737095,137.02540013,167.35,167.27,5.20066267]
[1752676737396,105.63899543,167.35,167.29,5.20066267]
[1752676737597,105.63899543,167.35,167.3,6.13418357]
[1752676737796,105.63899543,167.35,167.31,6.13418357]
[1752676737999,105.63899543,167.35,167.32,5.9747]
[1752676738199,5.20066267,167.35,167.32,5.9747]
[1752676738596,5.20066267,167.35,167.21,528.4575]
[1752676738597,5.20066267,167.37,167.29,5.20066267]
[1752676738797,129.20066267,167.38,167.3,6.13037811]
[1752676738997,129.20066267,167.38,167.29,5.20066267]
[1752676738998,109.05588798,167.38,167.31,6.13037811]
[1752676739299,109.05588798,167.38,167.32,6.13037811]
[1752676739501,109.05588798,167.38,167.33,6.13037811]
[1752676739701,109.05588798,167.38,167.35,5.9736]
[1752676739997,109.05588798,167.38,167.29,8.66486286]
[1752676740200,8.66486286,167.38,167.3,6.12608463]
[1752676740400,8.66486286,167.38,167.31,6.12608463]
[1752676740603,8.66486286,167.38,167.32,6.12608463]
[1752676740804,8.66486286,167.38,167.33,6.12608463]
[1752676741005,348.66,167.39,167.34,6.12608463]
[1752676741206,348.66,167.39,167.29,8.66486286]
[1752676741207,224.66,167.39,167.29,8.66486286]
[1752676741397,8.66486286,167.38,167.3,6.12722952]
[1752676741598,8.66486286,167.36,167.31,6.12722952]
[1752676741800,124.0,167.38,167.32,6.12722952]
[1752676742004,8.66486286,167.33,167.27,5.9766]
[1752676742204,124.0,167.38,167.28,6.12821492]
[1752676742205,8.66486286,167.3,167.28,6.12821492]
[1752676742407,232.98486286,167.34,167.25,8.66486286]